bitfinex-derivatives/quotes_ETHF0:USTF0_20250730
["timestamp","ask_amount","ask_price","bid_price","bid_amount"]
[1753870458082,1.87916,3796.8,3796.7,2.02]
[1753870458388,1.87916,3796.8,3796.7,5.2278]
[1753870459079,2.16936,3796.8,3796.7,5.2278]
[1753870459284,2.50006,3796.8,3796.7,5.2278]
[1753870461483,19.39676,3797.2,3796.9,2.00193]
[1753870461484,0.52674,3797.0,3796.9,2.00193]
[1753870461683,1.03712,3797.1,3797.0,1.34152]
[1753870461884,1.48342,3797.1,3797.0,2.0089]
[1753870462084,1.86942,3797.1,3797.0,2.0089]
[1753870462286,2.16992,3797.1,3797.0,2.0089]
[1753870462876,2.49442,3797.1,3797.0,2.0089]
[1753870463789,1.03712,3797.1,3797.0,1.5854]
[1753870464080,1.48342,3797.1,3797.0,2.0089]
[1753870464284,1.86942,3797.1,3797.0,2.0089]
[1753870464980,1.03712,3797.1,3797.0,2.0089]
[1753870465186,41.1245,3797.4,3797.3,2.0089]
[1753870465187,41.32668,3797.4,3797.3,2.0089]
[1753870465378,1.03706,3797.5,3797.4,0.52667]
[1753870465585,1.03706,3797.5,3797.4,2.53557]
[1753870465776,41.7567,3797.5,3797.4,2.53557]
[1753870467483,42.1425,3797.5,3797.4,2.53557]
[1753870468080,1.3425,3797.5,3797.4,2.53557]
[1753870468284,1.9675,3797.5,3797.4,2.0089]
[1753870475296,20.0445,3797.5,3797.4,2.0089]
[1753870476590,1.9675,3797.5,3797.4,2.0089]
[1753870476785,20.0435,3797.5,3797.4,2.0089]
[1753870477293,20.0435,3797.5,3797.4,1.14]
[1753870477492,1.9675,3797.2,3797.1,3.7586]
[1753870477699,2.49423,3797.0,3796.9,0.5337]
[1753870477896,2.10845,3796.8,3796.7,4.0667]
[1753870478096,2.49425,3796.8,3796.7,4.0667]
[1753870478294,3.6541,3797.8,3797.2,0.8148]
[1753870478593,3.2078,3797.8,3797.5,0.8148]
[1753870478800,1.31645,3798.1,3797.5,0.8148]
[1753870478801,58.876,3797.6,3797.5,4.0226]
[1753870478992,0.3858,3797.8,3797.7,0.3081]
[1753870479191,1.9675,3798.2,3798.1,2.0089]
[1753870479388,19.719,3798.2,3798.1,2.0089]
[1753870479697,20.0435,3798.2,3798.1,1.5854]
[1753870479996,20.0435,3798.2,3798.1,1.3043]
[1753870480699,20.0435,3798.2,3798.1,2.0089]
[1753870480888,1.9675,3798.2,3798.1,2.0089]
[1753870481295,20.0425,3798.2,3798.1,2.0089]
[1753870482501,20.84932703,3798.2,3798.1,2.0089]
[1753870482995,20.0425,3798.2,3798.1,2.0089]
[1753870485401,19.718,3798.2,3798.1,2.0089]
[1753870485702,20.0425,3798.2,3798.1,2.0089]
[1753870488400,18.5854,3798.2,3798.1,2.0089]
[1753870488595,18.075,3798.2,3798.1,2.0089]
[1753870488797,40.8,3798.3,3798.2,2.11196]
[1753870489002,3.2078,3799.1,3798.1,5.26572146]
[1753870489203,0.9414492,3799.6,3799.3,1.3412]
[1753870489204,1.9675,3799.4,3799.3,1.3412]
[1753870489498,0.9567,3799.4,3799.3,1.3412]
[1753870489701,0.9567,3799.4,3799.3,2.5353]
[1753870489702,2.14874375,3799.4,3799.3,2.5353]
[1753870490101,1.3425,3799.4,3799.3,2.5353]
[1753870490794,0.9567,3799.1,3799.0,4.24095]
[1753870491008,1.9675,3799.1,3799.0,4.54905]
[1753870491408,1.9675,3799.1,3799.0,5.75925]
[1753870491811,1.643,3799.1,3799.0,5.75925]
[1753870494316,1.643,3799.1,3799.0,4.3591]
[1753870494518,1.959,3799.1,3799.0,4.3591]
[1753870494713,1.959,3799.1,3799.0,4.7814]
[1753870495018,1.959,3799.1,3799.0,5.2328]
[1753870497316,0.52643,3799.2,3799.0,5.2328]
[1753870497518,0.5108,3799.1,3799.0,3.9946]
[1753870497712,1.3358,3799.1,3799.0,3.9946]
[1753870498020,1.3358,3799.1,3799.0,5.2048]
[1753870498321,40.8,3799.5,3799.0,9.68130472]
[1753870498522,19.4038,3799.3,3799.2,0.7868]
[1753870498821,20.0149,3799.3,3799.2,1.997]
[1753870499620,19.6989,3799.3,3799.2,1.997]
[1753870499814,58.867,3799.5,3799.4,1.31319]
[1753870500018,58.867,3799.5,3799.4,5.73119]
[1753870500219,40.8,3799.5,3799.4,5.73119]
[1753870500421,0.2,3799.9,3799.8,1.81184]
[1753870500422,0.4263,3799.9,3799.8,1.81184]
[1753870500614,0.4263,3799.9,3799.8,1.2855]
[1753870500615,19.2172,3799.9,3799.8,1.2855]
[1753870500820,60.4028,3799.9,3799.8,1.997]
[1753870501020,59.383,3799.9,3799.4,3.2078]
[1753870501226,1.6309,3799.5,3799.4,5.2048]
[1753870501419,1.6309,3799.5,3799.4,10.99454565]
[1753870502226,1.9469,3799.5,3799.4,5.2048]
[1753870502421,1.9469,3799.5,3799.4,3.7617]
[1753870502725,1.9469,3799.1,3799.0,1.5456]
[1753870503123,1.9469,3799.1,3799.0,1.997]
[1753870504521,1.6309,3799.1,3799.0,1.997]
[1753870505419,0.2263,3799.2,3799.0,1.28524]
[1753870505620,0.5264,3799.4,3799.3,1.997]
[1753870505820,0.3843,3799.7,3799.4,2.52339]
[1753870505821,1.47658,3799.5,3799.4,2.52339]
[1753870506124,1.86088,3799.5,3799.4,1.997]
[1753870506320,1.03716,3799.7,3799.3,3.2078]
[1753870506529,1.47655,3799.8,3799.7,1.997]
[1753870506728,0.9502,3799.8,3799.7,1.997]
[1753870509023,1.3345,3799.8,3799.7,1.997]
[1753870509920,0.72633,3799.9,3799.8,0.7879]
[1753870510128,2.06083,3799.9,3799.8,1.997]
[1753870510317,43.15593,3799.9,3799.8,1.997]
[1753870510726,43.47193,3799.9,3799.8,1.997]
[1753870511117,43.47193,3799.9,3799.8,0.8341]
[1753870511429,1.9456,3799.4,3799.3,2.1011]
[1753870511627,1.9456,3799.4,3799.3,1.997]
[1753870512218,20.53594,3799.8,3799.7,1.6605]
[1753870512423,20.53594,3799.8,3799.7,1.997]
[1753870513924,0.52638,3799.5,3799.4,1.6605]
[1753870514227,0.52638,3799.5,3799.4,0.8431]
[1753870514228,2.47198,3799.5,3799.4,0.8431]
[1753870514424,2.47198,3799.5,3799.4,1.5456]
[1753870514728,2.47198,3799.5,3799.4,1.997]
[1753870516724,18.064,3799.8,3799.2,5.2048]
[1753870516725,1.9456,3799.3,3799.2,5.2048]
[1753870518030,0.5108,3799.3,3799.2,5.2048]
[1753870518634,0.5108,3799.3,3799.2,1.997]
[1753870518833,0.9502,3799.3,3799.2,1.997]
[1753870519034,0.7003,3799.6,3799.4,1.997]
[1753870519035,0.52638,3799.5,3799.4,1.997]
[1753870519433,1.86088,3799.5,3799.4,1.997]
[1753870520339,2.15598,3799.5,3799.4,1.997]
[1753870520635,2.47198,3799.5,3799.4,1.997]
[1753870521837,1.9456,3799.5,3799.4,1.997]
[1753870522036,18.58836,3799.7,3799.5,0.83378]
[1753870522337,41.0,3799.9,3799.4,1.2102]
[1753870522338,0.4936,3799.8,3799.7,0.81]
[1753870522537,1.3174,3799.8,3799.7,1.2474]
[1753870522729,1.6051,3799.8,3799.7,1.9993]
[1753870522927,1.9337,3799.8,3799.7,1.9993]
[1753870526443,1.9337,3799.8,3799.7,0.8574]
[1753870526630,0.5022,3799.5,3799.4,1.3781]
[1753870526836,1.9337,3799.5,3799.4,1.665]
[1753870527235,1.9337,3799.5,3799.4,1.9993]
[1753870527637,1.6051,3799.3,3799.2,3.2078]
[1753870527944,1.9337,3799.3,3799.2,0.3343]
[1753870528240,1.9337,3799.3,3799.2,0.55]
[1753870528440,1.9337,3799.3,3799.2,1.2948]
[1753870528638,1.9337,3799.3,3799.2,0.8574]
[1753870528839,1.5483,3799.1,3799.0,0.81]
[1753870529040,1.9337,3799.1,3799.0,0.5231]
[1753870529242,1.9337,3799.1,3799.0,0.8574]
[1753870529545,1.9337,3799.1,3799.0,1.9993]
[1753870529937,0.4936,3799.1,3799.0,1.9993]
[1753870530135,19.3774,3799.3,3799.2,1.9993]
[1753870530633,19.6651,3799.3,3799.2,1.9993]
[1753870531645,1.6051,3799.3,3799.2,1.9993]
[1753870531846,1.02,3799.4,3799.3,1.5817]
[1753870532046,0.4936,3799.4,3799.3,1.9993]
[1753870532245,18.06,3799.5,3799.4,2.52569]
[1753870532541,0.80547,3799.6,3799.5,1.4967]
[1753870532748,1.24387,3799.6,3799.5,1.9993]
[1753870532954,1.45837,3799.6,3799.5,1.9993]
[1753870533244,1.63633,3799.2,3799.1,0.81]
[1753870533545,2.46013,3799.2,3799.1,1.9993]
[1753870533938,0.81416,3798.9,3798.8,4.7895]
[1753870534141,1.24396,3798.9,3798.8,3.9123]
[1753870534342,0.52652,3798.5,3798.4,3.2078]
[1753870534639,0.52658,3798.1,3798.0,3.2078]
[1753870535440,0.52656,3798.3,3798.0,3.73438]
[1753870535637,40.8,3798.4,3798.0,3.2078]
[1753870535837,0.52657,3798.2,3798.0,3.2078]
[1753870536547,1.2166,3798.1,3798.0,3.7309]
[1753870536944,1.2166,3798.1,3798.0,0.5231]
[1753870537151,1.2174,3797.7,3797.6,0.3074]
[1753870537344,1.2174,3797.7,3797.6,1.2948]
[1753870537546,0.6011,3797.7,3797.6,1.9993]
[1753870537751,0.932,3797.9,3797.8,0.81]
[1753870538049,18.06,3798.2,3798.1,1.2474]
[1753870538050,19.51857,3798.2,3798.1,1.2474]
[1753870538241,19.51857,3798.2,3798.1,1.9993]
[1753870538445,0.52657,3798.2,3798.1,1.9993]
[1753870538645,19.08017,3798.2,3798.1,1.9993]
[1753870538847,20.52147,3798.2,3798.1,1.9993]
[1753870539046,19.9949,3798.2,3798.1,1.9993]
[1753870539250,19.6663,3798.2,3798.1,1.9993]
[1753870540053,0.932,3798.2,3798.1,5.2071]
[1753870540249,0.52655,3798.3,3798.1,4.0178]
[1753870540450,1.84515,3798.3,3798.2,1.9993]
[1753870540748,2.46145,3798.3,3798.2,1.9993]
[1753870541246,2.4615,3797.9,3797.7,3.2078]
[1753870541452,1.3079,3797.9,3797.7,3.2078]
[1753870541656,0.7813,3798.2,3798.1,0.81]
[1753870541840,0.4936,3798.2,3798.1,4.7697]
[1753870542246,0.4936,3798.2,3798.1,5.2071]
[1753870542556,2.46153,3797.7,3797.6,4.0178]
[1753870542753,2.46153,3797.7,3797.6,3.7309]
[1753870543048,2.46156,3797.5,3797.4,1.9993]
[1753870543356,2.46156,3797.5,3797.4,1.1443]
[1753870543851,2.46156,3797.5,3797.4,1.9993]
[1753870544251,1.6063,3797.5,3797.4,1.9993]
[1753870546357,0.932,3797.5,3797.4,1.9993]
[1753870546556,0.4936,3797.5,3797.4,1.9993]
[1753870546753,0.2145,3797.5,3797.4,1.9993]
[1753870547058,0.932,3797.8,3797.7,1.9993]
[1753870547257,0.4936,3798.1,3798.0,1.2474]
[1753870547454,18.5616,3798.1,3798.0,0.81]
[1753870547759,19.6743,3798.1,3798.0,0.81]
[1753870548261,18.068,3798.1,3798.0,1.9993]
[1753870548653,18.5616,3798.1,3798.0,1.9993]
[1753870548953,0.52655,3798.3,3798.2,0.5231]
[1753870549164,0.80565,3798.3,3798.2,1.9993]
[1753870549353,19.52655,3798.3,3798.2,1.9993]
[1753870549547,19.91315,3798.3,3798.2,1.9993]
[1753870549956,20.20085,3798.3,3798.2,1.9993]
[1753870550258,20.52945,3798.3,3798.2,1.9993]
[1753870550456,1.6063,3798.1,3798.0,1.2474]
[1753870550654,1.9349,3798.1,3798.0,1.5817]
[1753870550857,19.9999,3798.1,3798.0,1.5817]
[1753870551157,19.9999,3798.1,3798.0,1.9993]
[1753870551654,41.71054,3798.4,3798.1,0.52657]
[1753870551858,42.46224,3798.4,3798.3,1.9204]
[1753870552056,60.52724,3798.4,3798.3,1.9204]
[1753870552754,60.52724,3798.4,3798.3,1.0815]
[1753870553049,60.52724,3798.4,3798.3,1.5215]
[1753870553352,60.52724,3798.4,3798.3,1.9204]
[1753870555054,0.52653,3798.5,3798.3,1.9204]
[1753870555255,18.5531,3798.4,3798.3,1.9204]
[1753870555460,18.9763,3798.4,3798.3,1.9204]
[1753870557159,19.3603,3798.4,3798.3,1.9204]
[1753870557455,40.8,3798.5,3798.3,1.9204]
[1753870557662,0.2131,3798.9,3798.8,0.7745]
[1753870557963,2.13241,3799.3,3799.2,1.0815]
[1753870558163,21.52532695,3799.3,3799.2,1.0815]
[1753870558355,21.33209303,3799.3,3799.2,1.9204]
[1753870558556,62.13209303,3799.3,3799.2,1.9204]
[1753870558762,61.80359303,3799.3,3799.2,1.9204]
[1753870558959,61.27718303,3799.3,3799.2,1.9204]
[1753870559160,59.67118303,3799.3,3799.2,1.9204]
[1753870559355,59.66918303,3799.3,3799.2,1.9204]
[1753870559762,18.86918303,3799.3,3799.2,1.9204]
[1753870560058,20.47518303,3799.3,3799.2,1.9204]
[1753870560253,2.46096,3798.9,3798.8,1.5215]
[1753870560461,0.384,3798.8,3798.7,3.6478]
[1753870560661,1.9345,3798.8,3798.7,5.1282]
[1753870561259,1.9345,3798.8,3798.7,3.7079]
[1753870561460,18.58946,3799.0,3798.9,0.7745]
[1753870561660,0.52644,3799.1,3799.0,1.9204]
[1753870561858,18.58944,3799.1,3799.0,1.9204]
[1753870562061,19.07754,3799.1,3799.0,1.9204]
[1753870562363,0.7988,3798.7,3798.6,1.2471]
[1753870562668,1.9345,3798.7,3798.6,1.2471]
[1753870562962,1.9345,3798.7,3798.6,1.9204]
[1753870563265,1.606,3798.7,3798.6,1.9204]
[1753870563465,1.9345,3798.7,3798.6,1.9204]
[1753870564465,1.9345,3798.7,3798.6,1.0815]
[1753870564856,1.9345,3798.7,3798.6,0.8071]
[1753870565061,1.32538,3798.1,3797.9,3.2078]
[1753870565362,0.275,3798.0,3797.9,5.1282]
[1753870565562,0.4881,3798.0,3797.9,5.1282]
[1753870565764,0.9113,3798.0,3797.9,5.1282]
[1753870566467,1.2953,3798.0,3797.9,5.1282]
[1753870567170,1.606,3798.0,3797.9,5.1282]
[1753870567766,40.8,3798.2,3798.1,1.9204]
[1753870569376,41.6072,3798.2,3798.1,1.9204]
[1753870569868,41.9357,3798.2,3798.1,0.5001]
[1753870570268,0.4881,3798.0,3797.9,3.2078]
[1753870570467,1.9345,3798.0,3797.9,4.7293]
[1753870570666,1.9345,3798.0,3797.9,3.7079]
[1753870570865,0.52663,3797.7,3797.5,3.6478]
[1753870571071,1.9345,3797.6,3797.5,3.2078]
[1753870571866,1.9345,3797.6,3797.5,4.0149]
[1753870572174,1.9345,3797.6,3797.5,5.1282]
[1753870572973,1.9345,3797.6,3797.5,4.7293]
[1753870574074,1.9345,3797.6,3797.5,4.4549]
[1753870575265,1.9345,3797.6,3797.5,4.7293]
[1753870575472,4.1492492,3798.9,3797.9,0.7059]
[1753870575777,0.52654,3798.4,3798.3,1.9204]
[1753870575969,1.43784,3798.4,3798.3,1.9204]
[1753870576367,2.13254,3798.4,3798.3,1.9204]
[1753870576569,41.2232,3798.6,3798.5,0.4849]
[1753870576772,40.8,3798.6,3798.5,1.9204]
[1753870577570,0.8721,3798.8,3798.7,0.7745]
[1753870577872,2.35362302,3801.0,3798.7,0.7745]
[1753870577873,2.24781,3799.3,3799.2,0.2744]
[1753870578074,2.46096,3798.9,3798.8,1.9204]
[1753870578275,2.46096,3798.9,3798.7,3.2078]
[1753870578580,1.9345,3798.8,3798.7,3.2078]
[1753870579180,1.606,3798.8,3798.7,5.1282]
[1753870581480,1.9345,3798.8,3798.7,5.1282]
[1753870586782,1.9345,3798.8,3798.7,3.2078]
[1753870586976,2.38563,3798.4,3798.3,0.8048]
[1753870587181,2.38563,3798.4,3798.3,1.9048]
[1753870587581,0.52653,3798.5,3798.3,1.9048]
[1753870587782,0.52653,3798.5,3798.4,1.9048]
[1753870587783,0.80403,3798.5,3798.4,1.9048]
[1753870587979,18.109,3798.7,3798.4,0.7613]
[1753870588281,0.5265,3798.6,3798.5,1.9048]
[1753870589993,0.5265,3798.6,3798.5,2.8267]
[1753870590686,2.3856,3798.6,3798.5,0.9219]
[1753870592194,2.3856,3798.6,3798.5,1.9906]
[1753870592389,20.193,3798.6,3798.5,2.8267]
[1753870593185,20.4906,3798.6,3798.5,2.8267]
[1753870593390,20.4906,3798.6,3798.5,1.9906]
[1753870594791,20.4906,3798.6,3798.5,0.9219]
[1753870595291,20.4906,3798.6,3798.5,1.1233]
[1753870595490,20.4906,3798.6,3798.5,2.8267]
[1753870597092,1.0132,3798.6,3798.5,2.8267]
[1753870597289,0.52642,3799.2,3799.1,1.9048]
[1753870597488,18.62342,3799.3,3799.2,1.7034]
[1753870597695,18.62342,3799.3,3799.1,3.2078]
[1753870597696,0.2775,3799.6,3799.5,0.5599]
[1753870597991,19.11006,3799.7,3799.6,1.9048]
[1753870598289,20.9915904,3799.7,3799.6,1.9048]
[1753870598491,2.08791,3799.3,3799.2,1.9048]
[1753870598691,2.38551,3799.3,3799.2,1.508]
[1753870599282,2.38551,3799.3,3799.2,1.9173]
[1753870599698,2.08791,3799.3,3799.2,1.9173]
[1753870600786,1.5615,3799.3,3799.2,1.9173]
[1753870601889,1.5615,3799.3,3799.2,0.5099]
[1753870602090,1.8591,3799.3,3799.2,0.0125]
[1753870602793,1.5615,3799.3,3799.2,1.9173]
[1753870602993,0.4867,3799.3,3799.2,1.9173]
[1753870603194,18.3675,3799.3,3799.2,1.9173]
[1753870603392,19.6514,3799.3,3799.2,0.0125]
[1753870603596,19.949,3799.3,3799.2,0.0125]
[1753870603792,0.2775,3799.4,3799.3,1.9048]
[1753870603987,0.91717,3799.6,3799.3,1.9048]
[1753870604193,18.62737,3799.6,3799.5,1.9048]
[1753870604797,18.90487,3799.6,3799.5,1.9048]
[1753870605100,19.11407,3799.6,3799.5,1.9048]
[1753870605300,19.88917,3799.6,3799.5,2.813]
[1753870605493,20.18877,3799.6,3799.5,2.813]
[1753870606197,20.48637,3799.6,3799.5,2.813]
[1753870607702,40.8,3799.7,3799.5,2.813]
[1753870607903,0.2,3799.9,3799.8,1.9048]
[1753870608102,18.291,3799.9,3799.8,1.9048]
[1753870608300,59.091,3799.9,3799.8,1.9048]
[1753870608596,59.8661,3799.9,3799.8,1.9048]
[1753870609602,41.7751,3799.9,3799.8,1.9048]
[1753870609800,59.089,3799.9,3799.8,1.9048]
[1753870610698,59.089,3799.9,3799.8,1.9173]
[1753870611096,59.4798,3799.9,3799.8,1.9173]
[1753870611296,59.8641,3799.9,3799.8,1.9173]
[1753870611799,60.177,3799.9,3799.8,0.0125]
[1753870612295,60.177,3799.9,3799.8,0.3202]
[1753870612501,60.177,3799.9,3799.8,0.8046]
[1753870612796,60.177,3799.9,3799.8,1.2343]
[1753870613596,60.177,3799.9,3799.8,0.0125]
[1753870613796,63.85960434,3799.9,3799.8,0.0125]
[1753870614097,1.28717,3798.9,3798.8,1.8761]
[1753870614301,1.75609,3798.7,3798.6,0.1957]
[1753870614501,2.47589,3798.7,3798.6,1.0567]
[1753870614999,0.7607,3798.4,3798.3,3.9568]
[1753870615198,1.9494,3798.4,3798.3,3.9568]
[1753870615399,1.9494,3798.4,3798.3,4.3465]
[1753870615601,1.6365,3798.4,3798.3,4.6542]
[1753870616001,1.9494,3798.4,3798.3,3.7112]
[1753870616202,1.9494,3798.4,3798.3,3.4035]
[1753870616595,1.9494,3798.4,3798.3,3.7112]
[1753870616795,1.74783,3797.7,3797.6,1.0567]
[1753870616996,0.5267,3797.2,3797.1,3.2078]
[1753870617202,1.9494,3797.2,3797.1,1.2218]
[1753870617502,20.0544,3797.2,3797.1,1.0567]
[1753870617900,20.0544,3797.2,3797.1,1.8761]
[1753870618100,19.7415,3797.2,3797.1,1.8761]
[1753870618902,20.0544,3797.2,3797.1,1.8761]
[1753870619999,19.7415,3797.2,3797.1,1.8761]
[1753870620600,1.6365,3797.2,3797.1,1.8761]
[1753870620800,19.7475,3797.2,3797.1,1.8761]
[1753870623008,20.0604,3797.2,3797.1,1.0567]
[1753870623208,2.16327,3796.8,3796.7,1.8761]
[1753870623711,2.16327,3796.8,3796.7,0.5034]
[1753870623712,20.57617,3796.8,3796.7,0.5034]
[1753870623905,61.37617,3796.8,3796.7,0.1957]
[1753870624113,1.6365,3796.5,3796.4,1.8761]
[1753870624316,1.6365,3796.5,3796.4,5.0839]
[1753870625005,0.7607,3796.5,3796.4,5.0839]
[1753870625214,0.5629,3796.5,3796.4,5.0839]
[1753870625606,0.2584,3796.5,3796.4,5.0839]
[1753870625805,18.099,3796.6,3796.5,1.8761]
[1753870626610,18.3574,3796.6,3796.5,1.8761]
[1753870627213,40.8,3796.8,3796.7,1.8761]
[1753870627413,58.897,3796.8,3796.7,1.8761]
[1753870627707,60.0857,3796.8,3796.7,1.8761]
[1753870627913,60.0857,3796.8,3796.4,3.73461]
[1753870627914,1.6365,3796.5,3796.4,4.2645]
[1753870628104,1.9494,3796.5,3796.4,1.0567]
[1753870628304,1.9494,3796.5,3796.4,1.8761]
[1753870630026,1.6365,3796.5,3796.4,1.8761]
[1753870631226,1.6365,3796.5,3796.4,5.0839]
[1753870632530,1.6365,3796.5,3796.4,0.3077]
[1753870632531,1.9494,3796.5,3796.4,0.3077]
[1753870632724,1.4889,3796.2,3796.1,1.5684]
[1753870632923,1.9494,3796.2,3796.1,1.5684]
[1753870633127,2.16334,3796.2,3796.1,0.4844]
[1753870633327,2.47624,3796.2,3796.1,0.1957]
[1753870633629,2.47624,3796.2,3796.1,0.5034]
[1753870634329,2.47624,3796.2,3796.1,1.0567]
[1753870634523,2.47624,3796.2,3796.1,1.4864]
[1753870634724,1.4889,3796.0,3795.9,1.0567]
[1753870634918,20.0404,3796.0,3795.9,1.4864]
[1753870635129,19.7275,3796.0,3795.9,1.8761]
[1753870636127,1.6365,3796.0,3795.9,1.8761]
[1753870636326,19.7265,3796.0,3795.9,1.8761]
[1753870637728,20.0394,3796.0,3795.9,1.8761]
[1753870638527,20.0394,3796.0,3795.9,1.4864]
[1753870639232,20.0394,3796.0,3795.9,1.8761]
[1753870639534,20.0394,3796.0,3795.9,1.0567]
[1753870639832,2.47628,3795.9,3795.8,0.69834975]
[1753870640230,2.47628,3795.9,3795.8,0.19494975]
[1753870640830,2.47628,3795.9,3795.8,0.50264975]
[1753870641036,2.47628,3795.9,3795.8,0.69834975]
[1753870641428,2.47628,3795.9,3795.8,1.26954975]
[1753870641729,2.47628,3795.9,3795.8,2.15314975]
[1753870642533,2.47628,3795.9,3795.8,0.19494975]
[1753870642738,2.47854,3795.5,3795.4,1.5813]
[1753870642925,20.55954,3795.5,3795.4,2.0057]
[1753870643630,1.1817,3795.5,3795.4,2.0057]
[1753870643832,0.3047,3795.8,3795.2,3.22624411]
[1753870643833,1.0389,3795.8,3795.7,2.0057]
[1753870644144,20.2538,3795.8,3795.7,2.0057]
[1753870644437,61.0538,3795.8,3795.7,2.0057]
[1753870644639,0.2853,3795.4,3795.3,0.98617]
[1753870644837,0.9684,3795.4,3795.3,2.53267]
[1753870645038,19.7269,3795.7,3795.6,2.0057]
[1753870646640,20.0316,3795.7,3795.6,2.0057]
[1753870647434,0.2133,3795.4,3795.3,0.73686]
[1753870647636,1.6469,3795.4,3795.3,2.0057]
[1753870647830,18.081,3795.6,3795.4,0.52695]
[1753870648033,20.25483,3795.6,3795.5,2.0057]
[1753870648932,20.55953,3795.6,3795.5,0.7069]
[1753870649128,2.47857,3795.3,3795.2,3.89534411]
[1753870649330,2.47857,3795.3,3795.2,3.22624411]
[1753870649733,2.47857,3795.3,3795.2,0.01844411]
[1753870650536,2.47862,3794.9,3794.8,5.2135]
[1753870650732,20.56762,3794.9,3794.8,5.2135]
[1753870653845,20.56762,3794.9,3794.8,3.736]
[1753870654046,20.56762,3794.9,3794.8,0.5282]
[1753870654443,1.6469,3794.5,3794.4,4.7891]
[1753870654640,1.9516,3794.5,3794.4,5.2135]
[1753870655640,1.6469,3794.5,3794.4,5.2135]
[1753870656147,1.9516,3794.5,3794.4,4.5066]
[1753870657048,1.9516,3794.5,3794.4,5.2135]
[1753870658345,1.2522,3794.5,3794.4,5.2135]
[1753870658746,1.6469,3794.5,3794.4,5.2135]
[1753870659750,1.6469,3794.5,3794.4,4.1883]
[1753870659945,2.17403,3794.1,3794.0,5.2135]
[1753870660146,2.47873,3794.1,3794.0,5.2135]
[1753870660340,1.9516,3794.1,3794.0,5.2135]
[1753870660541,1.6469,3794.1,3794.0,5.2135]
[1753870662043,1.9516,3794.1,3794.0,5.2135]
[1753870664147,1.9516,3794.1,3794.0,3.2078]
[1753870664554,1.9516,3794.1,3794.0,3.736]
[1753870666352,1.9516,3794.1,3794.0,0.5282]
[1753870666554,0.787,3793.9,3793.8,1.35652252]
[1753870666745,20.0376,3793.9,3793.8,1.67482252]
[1753870666947,20.0376,3793.9,3793.8,2.13402252]
[1753870667250,20.0376,3793.9,3793.8,2.72792252]
[1753870667851,19.7329,3793.9,3793.8,2.72792252]
[1753870670957,20.0376,3793.9,3793.8,2.72792252]
[1753870671153,1.9516,3793.9,3793.8,2.72792252]
[1753870671451,20.0396,3793.9,3793.8,2.72792252]
[1753870672449,20.0396,3793.9,3793.8,2.20075252]
[1753870673253,20.0396,3793.9,3793.8,0.49015252]
[1753870674249,18.875,3793.9,3793.2,3.2078]
[1753870674450,1.9387,3793.3,3792.9,0.2951]
[1753870674654,2.46599,3793.0,3792.9,0.5064]
[1753870674950,2.46605,3792.5,3792.4,4.7236]
[1753870675153,20.55405,3792.5,3792.4,4.2729]
[1753870675347,20.0267,3792.5,3792.4,4.2729]
[1753870675549,20.0267,3792.5,3792.4,3.7142]
[1753870676054,20.0267,3792.5,3792.4,0.5064]
[1753870676249,0.4887,3792.3,3792.2,0.0184587]
[1753870676452,20.0267,3792.3,3792.2,0.3135587]
[1753870676652,20.0267,3792.3,3792.2,1.9546587]
[1753870677264,20.0267,3792.3,3792.2,1.5342587]
[1753870677450,20.0267,3792.3,3792.2,1.0835587]
[1753870677654,20.0267,3792.3,3792.2,1.5342587]
[1753870677849,20.0267,3792.3,3792.2,1.9546587]
[1753870678250,20.0267,3792.3,3792.2,1.5342587]
[1753870678854,20.0267,3792.3,3792.2,0.8095587]
[1753870679155,20.0267,3792.3,3792.2,0.0184587]
[1753870680452,1.9387,3792.3,3792.2,1.2391587]
[1753870680652,2.00943,3792.7,3792.6,0.77]
[1753870680854,19.2646,3792.7,3792.6,4.7236]
[1753870681050,18.093,3792.7,3792.6,5.144]
[1753870681248,41.6713,3793.0,3792.9,1.4855]
[1753870681454,59.7643,3793.0,3792.9,1.9362]
[1753870681746,1.28423,3792.7,3792.6,3.7142]
[1753870681951,1.28426,3792.5,3792.4,0.496]
[1753870682150,20.56006,3792.5,3792.4,0.7911]
[1753870682355,1.9387,3792.3,3792.2,1.5039587]
[1753870682652,19.7222,3792.3,3792.2,1.9546587]
[1753870682850,0.4566,3792.6,3792.3,0.52738]
[1753870683047,1.6282,3792.6,3792.5,1.9362]
[1753870683256,20.0327,3792.6,3792.5,1.9362]
[1753870683856,0.52735,3792.5,3792.2,0.0184587]
[1753870684160,1.6282,3792.3,3792.2,1.9546587]
[1753870684553,1.9387,3792.3,3792.2,0.0184587]
[1753870684760,1.9387,3792.3,3792.2,0.8095587]
[1753870685057,1.9387,3792.3,3792.2,1.5342587]
[1753870685252,1.9387,3792.3,3792.2,1.9546587]
[1753870686054,1.9387,3792.3,3792.2,0.8095587]
[1753870686257,1.9387,3792.3,3792.2,0.5248587]
[1753870686561,0.9453,3792.3,3792.2,1.9546587]
[1753870687062,1.6282,3792.3,3792.2,1.9546587]
[1753870687258,0.5632,3792.3,3792.2,1.9546587]
[1753870687458,1.6282,3792.3,3792.2,1.9546587]
[1753870687652,1.9387,3792.3,3792.2,1.9546587]
[1753870688164,1.6282,3792.3,3792.2,1.9546587]